fUSD/lending_fUSD_20240117
["ID","MTS","AMOUNT","RATE_DAILY","PERIOD"]
[311939369,1705510297362,-153.29,0.00022809,2]
[311939370,1705510297380,-500.0,0.00022809,2]
[311939371,1705510297397,-159.61,0.00022809,2]
[311939372,1705510297412,-500.0,0.00022809,2]
[311939373,1705510297430,-500.0,0.00022809,2]
[311939374,1705510297444,-335.42,0.00022809,2]
[311939375,1705510297461,-500.0,0.00022809,2]
[311939376,1705510297479,-181.67,0.00022809,2]
[311939377,1705510297497,-500.0,0.00022809,2]
[311939378,1705510297513,-500.0,0.00022809,2]
[311939379,1705510297533,-987.72,0.00022809,5]
[311939380,1705510297547,-500.0,0.00022809,2]
[311939381,1705510297562,-500.0,0.00022809,2]
[311939382,1705510297577,-500.0,0.00022809,2]
[311939383,1705510297596,-500.0,0.00022809,2]
[311939384,1705510297613,-205.04,0.00022809,2]
[311939385,1705510297632,-500.0,0.00022809,2]
[311939386,1705510297647,-500.0,0.00022809,2]
[311939387,1705510297669,-628.77,0.00022809,2]
[311939388,1705510297685,-500.0,0.00022809,2]
[311939389,1705510297704,-500.0,0.00022809,2]
[311939390,1705510297721,-330.01,0.00022809,2]
[311939391,1705510297738,-270.76,0.00022809,2]
[311939392,1705510297755,-500.0,0.00022809,2]
[311939393,1705510297771,-500.0,0.00022809,2]
[311939394,1705510297787,-500.0,0.00022809,2]
[311939395,1705510297805,-500.0,0.00022809,2]
[311939396,1705510297825,-390.99,0.00022809,2]
[311939397,1705510297844,-500.0,0.00022809,2]
[311939398,1705510297862,-241.69,0.00022809,2]
[311939399,1705510297877,-613.09,0.00022809,2]
[311939400,1705510297893,-500.0,0.00022809,2]
[311939401,1705510297912,-560.27,0.00022809,2]
[311939402,1705510297929,-500.0,0.00022809,2]
[311939403,1705510297951,-425.64,0.00022809,2]
[311939404,1705510297981,-500.0,0.00022809,2]
[311939405,1705510298015,-500.0,0.00022809,2]
[311939406,1705510298043,-339.33,0.00022809,2]
[311939407,1705510298073,-353.52,0.00022809,2]
[311939408,1705510298096,-500.0,0.00022809,2]
[311939409,1705510298115,-500.0,0.0002281,2]
[311939410,1705510298131,-500.0,0.0002281,2]
[311939411,1705510298147,-500.0,0.0002281,2]
[311939412,1705510298165,-500.0,0.0002281,2]
[311939413,1705510298180,-185.57,0.0002281,2]
[311939414,1705510298197,-630.7,0.0002281,2]
[311939415,1705510298212,-4025.93,0.0002281,2]
[311939416,1705510298229,-492.05,0.0002281,2]
[311939417,1705510298243,-500.0,0.0002281,2]
[311939418,1705510298261,-500.0,0.0002281,2]
[311939419,1705510298279,-500.0,0.0002281,2]
[311939420,1705510298294,-500.0,0.0002281,2]
[311939421,1705510298311,-500.0,0.0002281,2]
[311939422,1705510298323,-318.75,0.0002281,2]
[311939423,1705510298337,-500.0,0.0002281,2]
[311939424,1705510298353,-500.0,0.0002281,2]
[311939425,1705510298369,-500.0,0.0002281,2]
[311939426,1705510298386,-500.0,0.0002281,2]
[311939427,1705510298404,-183.36,0.0002281,2]
[311939428,1705510298421,-500.0,0.0002281,2]
[311939429,1705510298439,-500.0,0.0002281,2]
[311939430,1705510298455,-500.0,0.0002281,2]
[311939431,1705510298469,-150.53,0.00022877,2]
[311939432,1705510298484,-155.51974414,0.00022881,2]
[311939433,1705510298498,-500.0,0.00022893,2]
[311939434,1705510298514,-511.73481098,0.00022895,2]
[311939435,1705510298531,-500.0,0.00022898,2]
[311939436,1705510298551,-551.69,0.00022898,2]
[311939437,1705510298574,-500.0,0.00022898,2]
[311939438,1705510298592,-500.0,0.00022899,2]
[311939439,1705510298615,-500.0,0.00022899,2]
[311939440,1705510298632,-500.0,0.00022899,2]
[311939441,1705510298650,-551.69,0.00022899,2]
[311939442,1705510298669,-509.57,0.00022899,2]
[311939443,1705510298684,-515.84802061,0.00022899,2]
[311939444,1705510298698,-100000.0,0.000229,2]
[311939445,1705510298712,-539.7492,0.000229,2]
[311939446,1705510298730,-500.0,0.000229,2]
[311939447,1705510298747,-46531.2636,0.000229,2]
[311939448,1705510298771,-1000.0,0.000229,2]
[311939449,1705510298791,-4240.15217833,0.000229,2]
[311939450,1705510298806,-152.13756338,0.000229,2]
[311939451,1705510298819,-152.13756285,0.000229,2]
[311939452,1705510298833,-152.13756285,0.000229,2]
[311939453,1705510298850,-152.13756285,0.000229,2]
[311939454,1705510298866,-152.13756285,0.000229,2]
[311939455,1705510298885,-1973.64680747,0.000229,2]
[311939456,1705510298957,-3831.35549795,0.000229,2]
[311939457,1705510298972,-475.83950501,0.000229,2]
[311939458,1705510298983,-200.88840202,0.000229,2]
[311939459,1705510298999,-10776.82075038,0.000229,2]
[311939460,1705510299016,-894.60054605,0.000229,2]
[311939461,1705510299030,-500.0,0.00022912,2]
[311939462,1705510299046,-152.13756285,0.00022927,2]
[311939463,1705510299063,-151.42,0.00022943,2]
[311939464,1705510299075,-352.21,0.00022949,2]
[311939465,1705510299091,-500.0,0.00022994,2]
[311939466,1705510299108,-509.57,0.00022994,2]
[311939467,1705510299128,-300.0,0.00022994,2]
[311939468,1705510299147,-11691.425006,0.00022995,2]
[311939469,1705510299163,-17537.137509,0.00022995,2]
[311939470,1705510299180,-23382.850012,0.00022995,2]
[311939471,1705510299194,-75884.728322,0.00022995,2]
[311939472,1705510299209,-113827.092483,0.00022995,2]
[311939473,1705510299225,-151769.456645,0.00022995,2]
[311939474,1705510299239,-500.0,0.00022995,2]
[311939475,1705510299263,-500.0,0.00022995,2]
[311939476,1705510299282,-500.0,0.00022995,2]
[311939477,1705510299299,-214.53142473,0.00022995,2]
[311939478,1705510299319,-509.57,0.00022995,2]
[311939479,1705510299339,-509.57,0.00022995,2]
[311939480,1705510299353,-509.57,0.00022995,2]
[311939481,1705510299378,-509.57,0.00022995,2]
[311939482,1705510299399,-509.57,0.00022995,2]
[311939483,1705510299414,-509.57,0.00022995,2]
[311939484,1705510299426,-509.57,0.00022995,2]
[311939485,1705510299439,-509.57,0.00022995,2]
[311939486,1705510299457,-509.57,0.00022995,2]
[311939487,1705510299475,-509.57,0.00022995,2]
[311939488,1705510299490,-509.57,0.00022995,2]
[311939489,1705510299508,-509.57,0.00022995,2]
[311939490,1705510299526,-509.57,0.00022995,2]
[311939491,1705510299538,-509.7,0.00022995,2]
[311939492,1705510299554,-9852.18909556,0.00022996,2]
[311939493,1705510299576,-203.21708329,0.00022996,2]
[311939494,1705510299593,-3920.35158571,0.00022996,2]
[311939495,1705510299607,-549.27735894,0.00022996,2]
[311939496,1705510299619,-155.21161762,0.00022996,2]
[311939497,1705510299633,-374.60559964,0.00022996,2]
[311939498,1705510299646,-156.82257641,0.00022996,2]
[311939499,1705510299663,-1070.18909292,0.00022996,2]
[311939500,1705510299679,-500.0,0.00022996,2]
[311939501,1705510299694,-500.0,0.00022996,2]
[311939502,1705510299713,-29228.562515,0.00022996,2]
[311939503,1705510299727,-189711.820806,0.00022996,2]
[311939504,1705510299739,-40919.987521,0.00022997,2]
[311939505,1705510299756,-265596.549129,0.00022997,2]
[311939506,1705510299769,-46765.700024,0.00022998,2]
[311939507,1705510299784,-303538.91329,0.00022998,2]
[311939508,1705510299802,-300.0,0.00022998,2]
[311939509,1705510299823,-1426.2366809,0.00022999,2]
[311939510,1705510299840,-5271.28765605,0.00022999,2]
[311939511,1705510299855,-967.48658206,0.00022999,2]
[311939512,1705510299870,-1265.65286724,0.00022999,2]
[311939513,1705510299886,-2315.6309702,0.00022999,2]
[311939514,1705510299900,-200.0,0.00022999,2]
[311939515,1705510299920,-155.0,0.00022999,2]
[311939516,1705510299939,-155.0,0.00022999,2]
[311939517,1705510299956,-46765.700024,0.00022999,2]
[311939518,1705510299970,-303538.91329,0.00022999,2]
[311939519,1705510299984,-500.0,0.00022999,2]
[311939520,1705510300004,-500.0,0.00022999,2]
[311939521,1705510300020,-500.0,0.00022999,2]
[311939522,1705510300036,-500.0,0.00022999,2]
[311939523,1705510300051,-551.11331879,0.00022999,2]
[311939524,1705510300067,-551.69,0.00022999,2]
[311939525,1705510300085,-551.69,0.00022999,2]
[311939526,1705510300101,-551.69,0.00022999,2]
[311939527,1705510300115,-551.69,0.00022999,2]
[311939528,1705510300127,-551.69,0.00022999,2]
[311939529,1705510300146,-551.69,0.00022999,2]
[311939530,1705510300161,-551.69,0.00022999,2]
[311939531,1705510300180,-551.69,0.00022999,2]
[311939532,1705510300198,-551.69,0.00022999,2]
[311939533,1705510300216,-551.69,0.00022999,2]
[311939534,1705510300236,-551.69,0.00022999,2]
[311939535,1705510300251,-551.69,0.00022999,2]
[311939536,1705510300266,-551.69,0.00022999,2]
[311939537,1705510300280,-551.69,0.00022999,2]
[311939538,1705510300293,-551.69,0.00022999,2]
[311939539,1705510300311,-551.69,0.00022999,2]
[311939540,1705510300328,-551.69,0.00022999,2]
[311939541,1705510300346,-551.69,0.00022999,2]
[311939542,1705510300367,-551.88457973,0.00022999,2]
[311939543,1705510300386,-300.0,0.00022999,2]
[311939544,1705510300408,-300.0,0.00022999,2]
[311939545,1705510300424,-1503361.73307294,0.00023,2]
[311939546,1705510300727,-115149.94693358,0.00023,2]
[311939547,1705510301017,177.17930462,0.00018462,2]
[311939548,1705510301081,-290.05331669,0.00021917,2]
[311939549,1705510301127,-209.94668331,0.00021917,2]
[311939550,1705510301146,-500.0,0.00021917,2]
[311939551,1705510301161,-500.0,0.00021917,2]
[311939552,1705510301175,-178.25553606,0.00021917,2]
[311939553,1705510301255,-321.74446394,0.00021917,2]
[311939554,1705510301270,-500.0,0.00021987,2]
[311939555,1705510301282,-500.0,0.00021987,2]
[311939556,1705510301302,-500.0,0.00022465,2]
[311939557,1705510301321,-500.0,0.00022739,2]
[311939558,1705510301334,-2684498.59443648,0.00023,2]
[311939559,1705510301350,-75916.90077465,0.00023,2]
[311939560,1705510301367,-200.0,0.00023,2]
[311939561,1705510301382,-500.0,0.00023013,2]
[311939562,1705510301397,-500.0,0.00023013,2]
[311939563,1705510301414,-676.78,0.00023013,2]
[311939564,1705510301433,-500.0,0.00023013,2]
[311939565,1705510301453,-500.0,0.00023013,2]
[311939566,1705510301471,-934.53,0.00023013,2]
[311939567,1705510301489,-500.0,0.00023013,2]
[311939568,1705510301503,-500.0,0.00023013,2]
[311939569,1705510301520,-469.34,0.00023013,2]
[311939570,1705510301535,-500.0,0.00023013,2]
[311939571,1705510301547,-500.0,0.00023013,2]
[311939572,1705510301566,-355.05,0.00023013,2]
[311939573,1705510301585,-2430.27,0.00023013,2]
[311939574,1705510301603,-500.0,0.00023013,2]
[311939575,1705510301620,-500.0,0.00023013,2]
[311939576,1705510301642,-500.0,0.00023013,2]
[311939577,1705510301654,-500.0,0.00023013,2]
[311939578,1705510301672,-593.34,0.00023013,2]
[311939579,1705510301689,-370.36,0.00023013,2]
[311939580,1705510301709,-500.0,0.00023013,2]
[311939581,1705510301727,-500.0,0.00023013,2]
[311939582,1705510301740,-500.0,0.00023013,2]
[311939583,1705510301756,-849.72,0.00023013,5]
[311939584,1705510301771,-266.42,0.00023013,2]
[311939585,1705510301785,-500.0,0.00023013,2]
[311939586,1705510301805,-500.0,0.00023013,2]
[311939587,1705510301819,-590.69,0.00023013,2]
[311939588,1705510301834,-500.0,0.00023013,2]
[311939589,1705510301848,-500.0,0.00023013,2]
[311939590,1705510301860,-500.0,0.00023013,2]
[311939591,1705510301878,-500.0,0.00023013,2]
[311939592,1705510301894,-986.29,0.00023013,2]
[311939593,1705510301915,-500.0,0.00023013,2]
[311939594,1705510301929,-500.0,0.00023013,2]
[311939595,1705510301950,-557.03,0.00023013,2]
[311939596,1705510301969,-500.0,0.00023013,2]
[311939597,1705510301987,-274.84,0.00023013,2]
[311939598,1705510302001,-500.0,0.00023013,2]
[311939599,1705510302016,-500.0,0.00023013,2]
[311939600,1705510302032,-182.09,0.00023013,2]
[311939601,1705510302047,-197.03,0.00023013,2]
[311939602,1705510302059,-500.0,0.00023013,2]
[311939603,1705510302074,-538.55,0.00023013,2]
[311939604,1705510302092,-500.0,0.00023047,2]
[311939605,1705510302111,-159.8,0.00023047,2]
[311939606,1705510302126,-500.0,0.00023047,2]
[311939607,1705510302142,-158.4,0.00023047,2]
[311939608,1705510302156,-270.42,0.00023047,2]
[311939609,1705510302172,-257.49,0.00023047,2]
[311939610,1705510302190,-500.0,0.00023047,2]
[311939611,1705510302206,-296.24,0.00023047,2]
[311939612,1705510302221,-435.58,0.00023047,2]
[311939613,1705510302243,-308.49,0.00023047,2]
[311939614,1705510302259,-500.0,0.00023047,2]
[311939615,1705510302276,-500.0,0.00023047,2]
[311939616,1705510302288,-486.3,0.00023047,2]
[311939617,1705510302301,-637.72,0.00023047,2]
[311939618,1705510302315,-358.17,0.00023047,2]
[311939619,1705510302330,-529.98,0.00023047,2]
[311939620,1705510302342,-500.0,0.00023047,2]
[311939621,1705510302355,-500.0,0.00023047,2]
[311939622,1705510302377,-344.26,0.00023047,2]
[311939623,1705510302397,-500.0,0.00023047,2]
[311939624,1705510302411,-500.0,0.00023047,2]
[311939625,1705510302431,-265.11,0.00023047,2]
[311939626,1705510302449,-352.55,0.00023047,2]
[311939627,1705510302468,-340.43,0.00023047,2]
[311939628,1705510302484,-500.0,0.00023047,2]
[311939629,1705510302502,-500.0,0.00023047,2]
[311939630,1705510302519,-500.0,0.00023047,2]
[311939631,1705510302535,-500.0,0.00023047,2]
[311939632,1705510302551,-500.0,0.00023047,2]
[311939633,1705510302566,-500.0,0.00023047,2]
[311939634,1705510302585,-500.0,0.00023047,2]
[311939635,1705510302601,-500.0,0.00023047,2]
[311939636,1705510302626,-410.7,0.00023047,2]
[311939637,1705510302640,-507.48,0.00023047,2]
[311939638,1705510302655,-500.0,0.00023047,2]
[311939639,1705510302670,-563.93,0.00023047,2]
[311939640,1705510302681,-541.0,0.00023047,2]
[311939641,1705510302696,-367.09,0.00023047,2]
[311939642,1705510302713,-500.0,0.00023047,2]
[311939643,1705510302726,-500.0,0.00023047,2]
[311939644,1705510302742,-500.0,0.00023047,2]
[311939645,1705510302761,-500.0,0.00023047,2]
[311939646,1705510302780,-196.02,0.00023047,2]
[311939647,1705510302793,-255.14,0.00023047,2]
[311939648,1705510302809,-500.0,0.00023047,2]
[311939649,1705510302823,-500.0,0.00023047,2]
[311939650,1705510302850,-500.0,0.00023082,2]
[311939651,1705510302865,-500.0,0.00023082,2]
[311939652,1705510302880,-483.52,0.00023082,2]
[311939653,1705510302893,-500.0,0.00023082,2]
[311939654,1705510302910,-500.0,0.00023082,2]
[311939655,1705510302930,-500.0,0.00023082,2]
[311939656,1705510302942,-500.0,0.00023082,2]
[311939657,1705510302968,-418.11,0.00023082,2]
[311939658,1705510302986,-500.0,0.00023082,2]
[311939659,1705510302998,-500.0,0.00023082,2]
[311939660,1705510303012,-500.0,0.00023082,2]
[311939661,1705510303027,-729.89,0.00023082,2]
[311939662,1705510303044,-500.0,0.00023082,2]
[311939663,1705510303058,-500.0,0.00023082,2]
[311939664,1705510303069,-500.0,0.00023082,2]
[311939665,1705510303081,-500.0,0.00023082,2]
[311939666,1705510303093,-500.0,0.00023082,2]
[311939667,1705510303105,-500.0,0.00023082,2]
[311939668,1705510303117,-500.0,0.00023082,2]
[311939669,1705510303130,-500.0,0.00023082,2]
[311939670,1705510303142,-634.88,0.00023082,2]
[311939671,1705510303155,-346.84,0.00023083,2]
[311939672,1705510303165,-500.0,0.00023083,2]
[311939673,1705510303180,-500.0,0.00023083,2]
[311939674,1705510303196,-396.32304493,0.00023083,2]
[311939675,1705510303214,-500.0,0.00023083,2]
[311939676,1705510303231,-150.0,0.00023083,2]
[311939677,1705510303244,-299.54,0.00023083,2]
[311939678,1705510303259,-372.56,0.00023083,2]
[311939679,1705510303275,-322.17,0.00023083,2]
[311939680,1705510303287,-332.8,0.00023083,2]
[311939681,1705510303303,-500.0,0.00023083,2]
[311939682,1705510303315,-403.15,0.00023083,2]
[311939683,1705510303331,-500.0,0.00023083,2]
[311939684,1705510303352,-500.0,0.00023083,2]
[311939685,1705510303368,-182.47,0.00023083,2]
[311939686,1705510303386,-500.0,0.00023083,2]
[311939687,1705510303405,-567.56,0.00023083,2]
[311939688,1705510303421,-500.0,0.00023083,2]
[311939689,1705510303438,-508.87,0.00023083,2]
[311939690,1705510303451,-500.0,0.00023083,2]
[311939691,1705510303468,-500.0,0.00023083,2]
[311939692,1705510303485,-500.0,0.00023083,2]
[311939693,1705510303500,-500.0,0.00023083,2]
[311939694,1705510303516,-500.0,0.00023083,2]
[311939695,1705510303544,-500.0,0.00023083,2]
[311939696,1705510303565,-500.0,0.00023083,2]
[311939697,1705510303584,-500.0,0.00023083,2]
[311939698,1705510303601,-987.72,0.00023083,5]
[311939699,1705510303620,-500.0,0.00023083,2]
[311939700,1705510303638,-500.0,0.00023083,2]
[311939701,1705510303652,-383.96,0.00023083,2]
[311939702,1705510303668,-177.77,0.00023083,2]
[311939703,1705510303681,-618.19,0.00023083,2]
[311939704,1705510303697,-500.0,0.00023083,2]
[311939705,1705510303719,-500.0,0.00023083,2]
[311939706,1705510303733,-500.0,0.00023083,2]
[311939707,1705510303752,-320.5,0.00023083,2]
[311939708,1705510303787,-500.0,0.00023083,2]
[311939709,1705510303804,-500.0,0.00023083,2]
[311939710,1705510303819,-500.0,0.00023083,2]
[311939711,1705510303835,-500.0,0.00023083,2]
[311939712,1705510303848,-500.0,0.00023083,2]
[311939713,1705510303865,-634.18,0.00023083,2]
[311939714,1705510303882,-411.53,0.00023083,2]
[311939715,1705510303897,-549.82,0.00023083,2]
[311939716,1705510303909,-500.0,0.00023084,2]
[311939717,1705510303922,-500.0,0.00023084,2]
[311939718,1705510303936,-500.0,0.00023084,2]
[311939719,1705510303951,-500.0,0.00023084,2]
[311939720,1705510303967,-4025.93,0.00023084,2]
[311939721,1705510303982,-500.0,0.00023084,2]
[311939722,1705510303994,-500.0,0.00023084,2]
[311939723,1705510304011,-500.0,0.00023084,2]
[311939724,1705510304027,-604.0,0.00023084,2]
[311939725,1705510304042,-500.0,0.00023084,2]
[311939726,1705510304059,-500.0,0.00023084,2]
[311939727,1705510304077,-500.0,0.00023084,2]
[311939728,1705510304092,-500.0,0.00023084,2]
[311939729,1705510304103,-500.0,0.00023084,2]
[311939730,1705510304121,-500.0,0.00023084,2]
[311939731,1705510304138,-500.0,0.00023084,2]
[311939732,1705510304151,-500.0,0.00023084,2]
[311939733,1705510304163,-150.0,0.00023126,2]
[311939734,1705510304176,-152.13756285,0.00023134,2]
[311939735,1705510304189,-500.0,0.00023186,2]
[311939736,1705510304203,-150.53,0.00023219,2]
[311939737,1705510304218,-162.49,0.00023227,2]
[311939738,1705510304233,-150.0,0.0002324,2]
[311939739,1705510304249,-3759.98,0.00023245,2]
[311939740,1705510304267,-151.42,0.00023258,2]
[311939741,1705510304286,-160.89,0.0002327,2]
[311939742,1705510304304,-895.17278907,0.00023274,2]
[311939743,1705510304321,-157.71,0.0002328,2]
[311939744,1705510304334,-150.0,0.00023285,2]
[311939745,1705510304346,-500.0,0.00023287,2]
[311939746,1705510304360,-335.41976498,0.00023287,2]
[311939747,1705510304374,-676.78,0.00023287,2]
[311939748,1705510304387,-265.36,0.00023287,2]
[311939749,1705510304403,-500.0,0.00023287,2]
[311939750,1705510304426,-934.53,0.00023287,2]
[311939751,1705510304445,-500.0,0.00023287,2]
[311939752,1705510304459,-500.0,0.00023287,2]
[311939753,1705510304477,-500.0,0.00023287,2]
[311939754,1705510304497,-500.0,0.00023287,2]
[311939755,1705510304518,-2430.27,0.00023287,2]
[311939756,1705510304541,-397.59,0.00023287,2]
[311939757,1705510304560,-500.0,0.00023287,2]
[311939758,1705510304583,-210.75,0.00023287,2]
[311939759,1705510304599,-391.98,0.00023287,2]
[311939760,1705510304623,-500.0,0.00023287,2]
[311939761,1705510304641,-500.0,0.00023287,2]
[311939762,1705510304660,-500.0,0.00023287,2]
[311939763,1705510304678,-849.72,0.00023287,5]
[311939764,1705510304697,-500.0,0.00023287,2]
[311939765,1705510304712,-500.0,0.00023287,2]
[311939766,1705510304737,-590.69,0.00023287,2]
[311939767,1705510304756,-500.0,0.00023287,2]
[311939768,1705510304777,-500.0,0.00023287,2]
[311939769,1705510304797,-500.0,0.00023287,2]
[311939770,1705510304819,-210.26,0.00023287,2]
[311939771,1705510304840,-986.29,0.00023287,2]
[311939772,1705510304858,-500.0,0.00023287,2]
[311939773,1705510304870,-442.21,0.00023287,2]
[311939774,1705510304887,-557.03,0.00023287,2]
[311939775,1705510304901,-373.82,0.00023287,2]
[311939776,1705510304917,-500.0,0.00023287,2]
[311939777,1705510304931,-500.0,0.00023287,2]
[311939778,1705510304947,-500.0,0.00023287,2]
[311939779,1705510304960,-420.19054641,0.00023288,4]
[311939780,1705510304973,-500.0,0.00023288,4]
[311939781,1705510304986,-500.0,0.00023288,4]
[311939782,1705510304999,-392.30902048,0.00023288,4]
[311939783,1705510305014,-409.01571311,0.00023288,4]
[311939784,1705510305032,-154.9168494,0.00023288,4]
[311939785,1705510305053,-562.02552661,0.00023288,4]
[311939786,1705510305065,-500.0,0.00023288,4]
[311939787,1705510305080,-500.0,0.00023288,4]
[311939788,1705510305094,-196.94590558,0.00023288,2]
[311939789,1705510305110,-500.0,0.00023288,2]
[311939790,1705510305124,-188.51980185,0.00023288,2]
[311939791,1705510305137,-500.0,0.00023288,2]
[311939792,1705510305152,-359.30920595,0.00023288,2]
[311939793,1705510305168,-500.0,0.00023288,2]
[311939794,1705510305184,-500.0,0.00023288,2]
[311939795,1705510305200,-500.0,0.00023288,2]
[311939796,1705510305215,-500.0,0.00023288,2]
[311939797,1705510305231,-500.0,0.00023288,2]
[311939798,1705510305245,-500.0,0.00023288,2]
[311939799,1705510305262,-500.0,0.00023288,2]
[311939800,1705510305274,-400.0,0.00023288,2]
[311939801,1705510305288,-500.0,0.00023288,2]
[311939802,1705510305301,-500.0,0.00023288,2]
[311939803,1705510305321,-500.0,0.00023288,2]
[311939804,1705510305337,-500.0,0.00023288,2]
[311939805,1705510305352,-500.0,0.00023288,2]
[311939806,1705510305372,-500.0,0.00023288,2]
[311939807,1705510305390,-500.0,0.00023288,2]
[311939808,1705510305407,-500.0,0.00023288,2]
[311939809,1705510305423,-294.55220323,0.00023288,2]
[311939810,1705510305442,-500.0,0.00023288,2]
[311939811,1705510305466,-500.0,0.00023288,2]
[311939812,1705510305480,-500.0,0.00023288,2]
[311939813,1705510305498,-500.0,0.00023288,2]
[311939814,1705510305521,-500.0,0.00023288,2]
[311939815,1705510305537,-500.0,0.00023288,2]
[311939816,1705510305554,-545.85391598,0.00023288,2]
[311939817,1705510305574,-500.0,0.00023288,2]
[311939818,1705510305592,-175.19860888,0.00023288,2]
[311939819,1705510305610,-411.3195131,0.00023288,2]
[311939820,1705510305625,-157.01,0.000233,2]
[311939821,1705510305643,-500.0,0.00023321,2]
[311939822,1705510305667,-500.0,0.00023321,2]
[311939823,1705510305685,-500.0,0.00023321,2]
[311939824,1705510305700,-245.64,0.00023321,2]
[311939825,1705510305718,-185.24,0.00023321,2]
[311939826,1705510305733,-391.91,0.00023321,2]
[311939827,1705510305750,-500.0,0.00023321,2]
[311939828,1705510305764,-341.12,0.00023321,2]
[311939829,1705510305777,-223.21,0.00023321,2]
[311939830,1705510305791,-155.47,0.00023321,2]
[311939831,1705510305807,-299.47,0.00023321,2]
[311939832,1705510305822,-500.0,0.00023321,2]
[311939833,1705510305837,-637.02,0.00023321,2]
[311939834,1705510305857,-232.34,0.00023321,2]
[311939835,1705510305878,-475.63,0.00023321,2]
[311939836,1705510305895,-272.07,0.00023321,2]
[311939837,1705510305916,-500.0,0.00023321,2]
[311939838,1705510305929,-500.0,0.00023321,2]
[311939839,1705510305946,-500.0,0.00023321,2]
[311939840,1705510305962,-541.23,0.00023321,2]
[311939841,1705510305981,-585.2,0.00023321,2]
[311939842,1705510305998,-500.0,0.00023321,2]
[311939843,1705510306015,-152.13756285,0.00023341,2]
[311939844,1705510306032,-301.47,0.00023345,2]
[311939845,1705510306051,-225.15,0.00023356,2]
[311939846,1705510306066,-637.36,0.00023356,2]
[311939847,1705510306081,-500.0,0.00023356,2]
[311939848,1705510306095,-500.0,0.00023356,2]
[311939849,1705510306113,-307.43,0.00023356,2]
[311939850,1705510306128,-500.0,0.00023356,2]
[311939851,1705510306145,-500.0,0.00023356,2]
[311939852,1705510306163,-500.0,0.00023356,2]
[311939853,1705510306180,-500.0,0.00023356,2]
[311939854,1705510306201,-729.89,0.00023356,2]
[311939855,1705510306218,-500.0,0.00023356,2]
[311939856,1705510306237,-500.0,0.00023356,2]
[311939857,1705510306250,-500.0,0.00023356,2]
[311939858,1705510306270,-500.0,0.00023356,2]
[311939859,1705510306289,-500.0,0.00023356,2]
[311939860,1705510306310,-500.0,0.00023356,2]
[311939861,1705510306327,-500.0,0.00023356,2]
[311939862,1705510306345,-344.2,0.00023356,2]
[311939863,1705510306363,-361.7,0.00023357,2]
[311939864,1705510306378,-500.0,0.00023357,2]
[311939865,1705510306395,-547.85,0.00023357,2]
[311939866,1705510306414,-500.0,0.00023357,2]
[311939867,1705510306429,-617.3,0.00023357,2]
[311939868,1705510306443,-530.8,0.00023357,2]